[Event "Titled Tuesday Blitz April 12 Early 2022"]
[White "Kalavannan, Koby"]
[Black "Demin, Vladimir"]
[WhiteFideId "425753"]
[BlackFideId "4167457"]
[WhiteElo "1927"]
[BlackElo "2383"]
[Result "0-1"]
[Round "04"]
[TimeControl "180+1"]
[Date "2022.04.13"]
[WhiteClock "0:00:06"]
[BlackClock "0:00:12"]

1. d4 {[%clk 0:03:00]}  Nf6 {[%clk 0:02:46]} 2. c4 {[%clk 0:03:00]}  e5 {[%clk 0:02:46]} 3. dxe5 {[%clk 0:03:00]}  Ng4 {[%clk 0:02:46]} 4. Nf3 {[%clk 0:02:59]}  Bc5 {[%clk 0:02:47]} 5. e3 {[%clk 0:02:58]}  Nc6 {[%clk 0:02:47]} 6. Nc3 {[%clk 0:02:53]}  O-O {[%clk 0:02:46]} 7. a3 {[%clk 0:02:50]}  a5 {[%clk 0:02:45]} 8. Be2 {[%clk 0:02:44]}  Ngxe5 {[%clk 0:02:44]} 9. Nxe5 {[%clk 0:02:36]}  Nxe5 {[%clk 0:02:45]} 10. Rb1 {[%clk 0:02:36]}  Re8 {[%clk 0:02:44]} 11. b4 {[%clk 0:02:36]}  axb4 {[%clk 0:02:43]} 12. axb4 {[%clk 0:02:37]}  Bf8 {[%clk 0:02:43]} 13. Bb2 {[%clk 0:02:19]}  Ra6 {[%clk 0:02:39]} 14. b5 {[%clk 0:02:17]}  Rh6 {[%clk 0:02:30]} 15. h3 {[%clk 0:01:57]}  Qg5 {[%clk 0:02:11]} 16. Bf3 {[%clk 0:01:44]}  Nxc4 {[%clk 0:01:54]} 17. Ne4 {[%clk 0:01:30]}  Qf5 {[%clk 0:01:22]} 18. Qc2 {[%clk 0:01:26]}  Nxb2 {[%clk 0:01:08]} 19. Rxb2 {[%clk 0:01:22]}  d5 {[%clk 0:01:04]} 20. Nc5 {[%clk 0:00:54]}  Qf6 {[%clk 0:00:54]} 21. Nd3 {[%clk 0:00:35]}  d4 {[%clk 0:00:47]} 22. e4 {[%clk 0:00:23]}  Bxh3 {[%clk 0:00:36]} 23. e5 {[%clk 0:00:15]}  Qf5 {[%clk 0:00:26]} 24. Bxb7 {[%clk 0:00:15]}  Bg4 {[%clk 0:00:14]} 25. Rxh6 {[%clk 0:00:15]}  gxh6 {[%clk 0:00:15]} 26. f3 {[%clk 0:00:15]}  Bh5 {[%clk 0:00:12]} 27. Be4 {[%clk 0:00:15]}  Qg5 {[%clk 0:00:12]} 28. Qd2 {[%clk 0:00:08]}  Qg3+ {[%clk 0:00:11]} 29. Qf2 {[%clk 0:00:08]}  Qxf2+ {[%clk 0:00:09]} 30. Kxf2 {[%clk 0:00:09]}  Bg6 {[%clk 0:00:09]} 31. Bxg6 {[%clk 0:00:05]}  hxg6 {[%clk 0:00:09]} 32. Rc2 {[%clk 0:00:06]}  Rb8 {[%clk 0:00:10]} 33. Rxc7 {[%clk 0:00:05]}  Rxb5 {[%clk 0:00:09]} 34. f4 {[%clk 0:00:05]}  Rb3 {[%clk 0:00:08]} 35. Ke2 {[%clk 0:00:06]}  Ra3 {[%clk 0:00:08]} 36. Nf2 {[%clk 0:00:04]}  Re3+ {[%clk 0:00:07]} 37. Kd2 {[%clk 0:00:04]}  Bb4+ {[%clk 0:00:06]} 38. Kc2 {[%clk 0:00:03]}  Re2+ {[%clk 0:00:06]} 39. Kb3 {[%clk 0:00:03]}  Rxf2 {[%clk 0:00:07]} 40. Kxb4 {[%clk 0:00:04]}  Rxg2 {[%clk 0:00:07]} 41. Rd7 {[%clk 0:00:04]}  Rg4 {[%clk 0:00:07]} 42. Rxd4 {[%clk 0:00:04]}  Kg7 {[%clk 0:00:07]} 43. Kc3 {[%clk 0:00:04]}  h5 {[%clk 0:00:06]} 44. Kd3 {[%clk 0:00:04]}  h4 {[%clk 0:00:07]} 45. Ke3 {[%clk 0:00:04]}  h3 {[%clk 0:00:05]} 46. Kf3 {[%clk 0:00:03]}  h2 {[%clk 0:00:04]} 47. Kxg4 {[%clk 0:00:03]}  h1=Q {[%clk 0:00:04]} 48. Rd3 {[%clk 0:00:03]}  Qg1+ {[%clk 0:00:04]} 49. Rg3 {[%clk 0:00:04]}  Qf1 {[%clk 0:00:04]} 50. Rf3 {[%clk 0:00:04]}  Qe2 {[%clk 0:00:05]} 51. Kg3 {[%clk 0:00:04]}  Qe1+ {[%clk 0:00:04]} 52. Kg2 {[%clk 0:00:04]}  Qa1 {[%clk 0:00:05]} 53. Kg3 {[%clk 0:00:04]}  Qa8 {[%clk 0:00:06]} 54. Re3 {[%clk 0:00:04]}  Qh8 {[%clk 0:00:06]} 55. Re2 {[%clk 0:00:04]}  Qh5 {[%clk 0:00:06]} 56. Rh2 {[%clk 0:00:04]}  Qf5 {[%clk 0:00:06]} 57. Rf2 {[%clk 0:00:04]}  Kf8 {[%clk 0:00:06]} 58. Rd2 {[%clk 0:00:03]}  Ke7 {[%clk 0:00:07]} 59. Rd6 {[%clk 0:00:03]}  Qe4 {[%clk 0:00:06]} 60. Rf6 {[%clk 0:00:04]}  Qe3+ {[%clk 0:00:06]} 61. Kg4 {[%clk 0:00:04]}  Qg1+ {[%clk 0:00:06]} 62. Kf3 {[%clk 0:00:05]}  Qh2 {[%clk 0:00:06]} 63. Ke4 {[%clk 0:00:05]}  Qh4 {[%clk 0:00:06]} 64. Ke3 {[%clk 0:00:05]}  Qh3+ {[%clk 0:00:05]} 65. Ke4 {[%clk 0:00:05]}  Qh2 {[%clk 0:00:05]} 66. Rd6 {[%clk 0:00:04]}  Qh4 {[%clk 0:00:05]} 67. Rf6 {[%clk 0:00:04]}  g5 {[%clk 0:00:05]} 68. Kf5 {[%clk 0:00:03]}  g4 {[%clk 0:00:05]} 69. Rd6 {[%clk 0:00:01]}  Qh5+ {[%clk 0:00:05]} 70. Ke4 {[%clk 0:00:01]}  g3 {[%clk 0:00:05]} 71. Rd2 {[%clk 0:00:01]}  Qg6+ {[%clk 0:00:05]} 72. Kf3 {[%clk 0:00:01]}  Qg8 {[%clk 0:00:04]} 73. Rg2 {[%clk 0:00:02]}  Ke6 {[%clk 0:00:03]} 74. Rxg3 {[%clk 0:00:03]}  Qc8 {[%clk 0:00:04]} 75. Rg5 {[%clk 0:00:03]}  Qc3+ {[%clk 0:00:04]} 76. Kg4 {[%clk 0:00:04]}  Qc2 {[%clk 0:00:04]} 77. Rh5 {[%clk 0:00:04]}  Qe2+ {[%clk 0:00:04]} 78. Kg5 {[%clk 0:00:04]}  Qg2+ {[%clk 0:00:04]} 79. Kh6 {[%clk 0:00:05]}  Qg3 {[%clk 0:00:04]} 80. f5+ {[%clk 0:00:04]}  Kxe5 {[%clk 0:00:04]} 81. Rg5 {[%clk 0:00:05]}  Qh4+ {[%clk 0:00:03]} 82. Rh5 {[%clk 0:00:06]}  Qg4 {[%clk 0:00:03]} 83. Rg5 {[%clk 0:00:06]}  Qh3+ {[%clk 0:00:03]} 84. Rh5 {[%clk 0:00:06]}  Qxf5 {[%clk 0:00:03]} 85. Rxf5+ {[%clk 0:00:06]}  Kxf5 {[%clk 0:00:04]} 86. Kh5 {[%clk 0:00:06]}  Kf4 {[%clk 0:00:04]} 87. Kh4 {[%clk 0:00:06]}  f5 {[%clk 0:00:04]} 88. Kh3 {[%clk 0:00:06]}  Kf3 {[%clk 0:00:05]} 89. Kh2 {[%clk 0:00:06]}  f4 {[%clk 0:00:04]} 90. Kg1 {[%clk 0:00:05]}  Ke2 {[%clk 0:00:05]} 91. Kg2 {[%clk 0:00:05]}  f3+ {[%clk 0:00:06]} 92. Kg3 {[%clk 0:00:05]}  f2 {[%clk 0:00:06]} 93. Kf4 {[%clk 0:00:06]}  f1=Q+ {[%clk 0:00:07]} 94. Ke4 {[%clk 0:00:07]}  Qf3+ {[%clk 0:00:08]} 95. Kd4 {[%clk 0:00:08]}  Qd3+ {[%clk 0:00:08]} 96. Kc5 {[%clk 0:00:09]}  Ke3 {[%clk 0:00:09]} 97. Kb4 {[%clk 0:00:08]}  Qd4+ {[%clk 0:00:09]} 98. Kb5 {[%clk 0:00:08]}  Qc3 {[%clk 0:00:10]} 99. Ka6 {[%clk 0:00:07]}  Qb4 {[%clk 0:00:10]} 100. Ka7 {[%clk 0:00:06]}  Qb5 {[%clk 0:00:10]} 101. Ka8 {[%clk 0:00:06]}  Kd4 {[%clk 0:00:11]} 102. Ka7 {[%clk 0:00:05]}  Kc5 {[%clk 0:00:12]} 103. Ka8 {[%clk 0:00:05]}  Kc6 {[%clk 0:00:13]} 104. Ka7 {[%clk 0:00:06]}  Qb7# {[%clk 0:00:12]} 0-1


[Site "https://www.chess.com"]

[Event "Titled Tuesday Blitz April 12 Early 2022"]
[White "Kavyev, Ruslan"]
[Black "Bachmann, Axel"]
[WhiteFideId "34110981"]
[BlackFideId "3700488"]
[WhiteElo "2182"]
[BlackElo "2587"]
[Result "1-0"]
[Round "04"]
[TimeControl "180+1"]
[Date "2022.04.13"]
[WhiteClock "0:00:12"]
[BlackClock "0:00:03"]

1. d4 {[%clk 0:02:52]}  Nf6 {[%clk 0:02:58]} 2. c4 {[%clk 0:02:51]}  g6 {[%clk 0:02:59]} 3. Nc3 {[%clk 0:02:50]}  Bg7 {[%clk 0:02:59]} 4. e4 {[%clk 0:02:50]}  d6 {[%clk 0:02:59]} 5. Be2 {[%clk 0:02:51]}  O-O {[%clk 0:02:59]} 6. Be3 {[%clk 0:02:52]}  Na6 {[%clk 0:02:59]} 7. h4 {[%clk 0:02:51]}  h5 {[%clk 0:02:56]} 8. f3 {[%clk 0:02:50]}  c5 {[%clk 0:02:45]} 9. d5 {[%clk 0:02:44]}  Nc7 {[%clk 0:02:44]} 10. a4 {[%clk 0:02:33]}  b6 {[%clk 0:02:35]} 11. Nh3 {[%clk 0:02:30]}  Bd7 {[%clk 0:02:33]} 12. Ng5 {[%clk 0:02:00]}  a6 {[%clk 0:02:30]} 13. O-O {[%clk 0:01:48]}  Rb8 {[%clk 0:02:25]} 14. Qd2 {[%clk 0:00:59]}  b5 {[%clk 0:02:22]} 15. axb5 {[%clk 0:00:55]}  axb5 {[%clk 0:02:22]} 16. b3 {[%clk 0:00:44]}  Nh7 {[%clk 0:01:54]} 17. Ra7 {[%clk 0:00:33]}  bxc4 {[%clk 0:01:38]} 18. bxc4 {[%clk 0:00:32]}  Rb3 {[%clk 0:01:38]} 19. Rc1 {[%clk 0:00:30]}  Qb8 {[%clk 0:01:34]} 20. Ra2 {[%clk 0:00:23]}  Qb4 {[%clk 0:01:28]} 21. Rac2 {[%clk 0:00:22]}  Ra8 {[%clk 0:01:13]} 22. Nxh7 {[%clk 0:00:22]}  Kxh7 {[%clk 0:01:12]} 23. Bg5 {[%clk 0:00:22]}  Bd4+ {[%clk 0:00:50]} 24. Kh1 {[%clk 0:00:21]}  f6 {[%clk 0:00:49]} 25. Be3 {[%clk 0:00:19]}  Bxe3 {[%clk 0:00:44]} 26. Qxe3 {[%clk 0:00:20]}  Raa3 {[%clk 0:00:44]} 27. Qd2 {[%clk 0:00:18]}  Kg7 {[%clk 0:00:31]} 28. f4 {[%clk 0:00:18]}  Bc8 {[%clk 0:00:16]} 29. e5 {[%clk 0:00:18]}  Ba6 {[%clk 0:00:14]} 30. exf6+ {[%clk 0:00:14]}  exf6 {[%clk 0:00:14]} 31. Qe3 {[%clk 0:00:13]}  Kf7 {[%clk 0:00:15]} 32. f5 {[%clk 0:00:13]}  Bxc4 {[%clk 0:00:11]} 33. fxg6+ {[%clk 0:00:12]}  Kxg6 {[%clk 0:00:11]} 34. Qg3+ {[%clk 0:00:11]}  Kf7 {[%clk 0:00:11]} 35. Bxh5+ {[%clk 0:00:11]}  Ke7 {[%clk 0:00:09]} 36. Qg7+ {[%clk 0:00:10]}  Kd8 {[%clk 0:00:07]} 37. Qf8+ {[%clk 0:00:10]}  Kd7 {[%clk 0:00:07]} 38. Bg4+ {[%clk 0:00:11]}  f5 {[%clk 0:00:07]} 39. Bxf5+ {[%clk 0:00:11]}  Ne6 {[%clk 0:00:07]} 40. Bxe6+ {[%clk 0:00:11]}  Kc7 {[%clk 0:00:08]} 41. Qe7+ {[%clk 0:00:11]}  Kb8 {[%clk 0:00:07]} 42. Qxd6+ {[%clk 0:00:11]}  Ka7 {[%clk 0:00:07]} 43. Qc7+ {[%clk 0:00:10]}  Ka6 {[%clk 0:00:07]} 44. Bc8+ {[%clk 0:00:11]}  Qb7 {[%clk 0:00:05]} 45. Bxb7+ {[%clk 0:00:11]}  Rxb7 {[%clk 0:00:06]} 46. Qxc5 {[%clk 0:00:10]}  Rab3 {[%clk 0:00:04]} 47. Qxc4+ {[%clk 0:00:10]}  Kb6 {[%clk 0:00:05]} 48. Qxb3+ {[%clk 0:00:11]}  Ka7 {[%clk 0:00:05]} 49. Ra2+ {[%clk 0:00:11]}  Kb8 {[%clk 0:00:05]} 50. Qc4 {[%clk 0:00:12]}  Rb6 {[%clk 0:00:04]} 51. Nb5 {[%clk 0:00:12]}  Rc6 {[%clk 0:00:02]} 52. dxc6 {[%clk 0:00:12]}  Kc8 {[%clk 0:00:03]} 53. Qg8# {[%clk 0:00:12]} 1-0


[Site "https://www.chess.com"]

[Event "Titled Tuesday Blitz April 12 Early 2022"]
[White "Kazakouski, Valery"]
[Black "Andreikin, Dmitry"]
[WhiteFideId "13507443"]
[BlackFideId "4158814"]
[WhiteElo "2524"]
[BlackElo "2736"]
[Result "1-0"]
[Round "04"]
[TimeControl "180+1"]
[Date "2022.04.12"]
[WhiteClock "0:00:30"]
[BlackClock "0:00:08"]

1. d4 {[%clk 0:02:54]}  Nf6 {[%clk 0:03:00]} 2. c4 {[%clk 0:02:54]}  e6 {[%clk 0:03:00]} 3. Nc3 {[%clk 0:02:52]}  Bb4 {[%clk 0:02:59]} 4. f3 {[%clk 0:02:53]}  c5 {[%clk 0:02:45]} 5. d5 {[%clk 0:02:53]}  b5 {[%clk 0:02:34]} 6. e4 {[%clk 0:02:53]}  O-O {[%clk 0:02:33]} 7. Kf2 {[%clk 0:02:53]}  d6 {[%clk 0:02:24]} 8. Nge2 {[%clk 0:02:53]}  exd5 {[%clk 0:02:15]} 9. cxd5 {[%clk 0:02:41]}  Nfd7 {[%clk 0:01:58]} 10. g4 {[%clk 0:02:39]}  c4 {[%clk 0:01:57]} 11. Be3 {[%clk 0:02:36]}  Ne5 {[%clk 0:01:54]} 12. Nf4 {[%clk 0:02:34]}  Qf6 {[%clk 0:01:50]} 13. Kg3 {[%clk 0:02:30]}  Nbd7 {[%clk 0:01:44]} 14. Nxb5 {[%clk 0:02:22]}  Bc5 {[%clk 0:01:40]} 15. Nd4 {[%clk 0:02:06]}  Rb8 {[%clk 0:01:38]} 16. Rb1 {[%clk 0:02:04]}  c3 {[%clk 0:01:37]} 17. bxc3 {[%clk 0:02:00]}  Rxb1 {[%clk 0:01:36]} 18. Qxb1 {[%clk 0:02:01]}  Nxf3 {[%clk 0:01:33]} 19. Kxf3 {[%clk 0:01:57]}  Ne5+ {[%clk 0:01:33]} 20. Kg3 {[%clk 0:01:55]}  Nxg4 {[%clk 0:01:30]} 21. Qc1 {[%clk 0:01:40]}  Re8 {[%clk 0:01:14]} 22. Bg2 {[%clk 0:01:30]}  Re5 {[%clk 0:01:10]} 23. h3 {[%clk 0:01:26]}  Nxe3 {[%clk 0:01:07]} 24. Qxe3 {[%clk 0:01:27]}  Rg5+ {[%clk 0:00:55]} 25. Kh2 {[%clk 0:01:23]}  Qh6 {[%clk 0:00:56]} 26. Rf1 {[%clk 0:01:18]}  Ba6 {[%clk 0:00:51]} 27. Rb1 {[%clk 0:01:09]}  Bb6 {[%clk 0:00:42]} 28. Qf3 {[%clk 0:00:56]}  g6 {[%clk 0:00:40]} 29. a4 {[%clk 0:00:40]}  Re5 {[%clk 0:00:32]} 30. a5 {[%clk 0:00:40]}  Bc7 {[%clk 0:00:27]} 31. Nc6 {[%clk 0:00:40]}  Re8 {[%clk 0:00:25]} 32. Nxa7 {[%clk 0:00:39]}  Bxa5 {[%clk 0:00:16]} 33. Ra1 {[%clk 0:00:38]}  Bxc3 {[%clk 0:00:17]} 34. Qxc3 {[%clk 0:00:34]}  Qxf4+ {[%clk 0:00:17]} 35. Qg3 {[%clk 0:00:34]}  Qxg3+ {[%clk 0:00:15]} 36. Kxg3 {[%clk 0:00:35]}  Bd3 {[%clk 0:00:15]} 37. Ra4 {[%clk 0:00:33]}  Ra8 {[%clk 0:00:15]} 38. Kf4 {[%clk 0:00:32]}  Kf8 {[%clk 0:00:13]} 39. Ke3 {[%clk 0:00:32]}  Bc2 {[%clk 0:00:12]} 40. Ra5 {[%clk 0:00:32]}  f5 {[%clk 0:00:11]} 41. Nc6 {[%clk 0:00:31]}  Re8 {[%clk 0:00:09]} 42. e5 {[%clk 0:00:32]}  dxe5 {[%clk 0:00:09]} 43. d6 {[%clk 0:00:32]}  f4+ {[%clk 0:00:09]} 44. Kf2 {[%clk 0:00:30]}  e4 {[%clk 0:00:09]} 45. d7 {[%clk 0:00:29]}  e3+ {[%clk 0:00:08]} 46. Ke1 {[%clk 0:00:30]} 1-0


[Site "https://www.chess.com"]

[Event "Titled Tuesday Blitz April 12 Early 2022"]
[White "Khamdamova, Afruza"]
[Black "Maksimenko, Viktor"]
[WhiteFideId "14210444"]
[BlackFideId "13710478"]
[WhiteElo "1660"]
[BlackElo "2269"]
[Result "0-1"]
[Round "04"]
[TimeControl "180+1"]
[Date "2022.04.13"]
[WhiteClock "0:00:03"]
[BlackClock "0:00:42"]

1. e4 {[%clk 0:03:00]}  c6 {[%clk 0:02:59]} 2. d4 {[%clk 0:03:00]}  d5 {[%clk 0:03:00]} 3. Nc3 {[%clk 0:03:01]}  dxe4 {[%clk 0:03:00]} 4. Nxe4 {[%clk 0:03:01]}  Nf6 {[%clk 0:03:01]} 5. Nxf6+ {[%clk 0:03:01]}  exf6 {[%clk 0:03:02]} 6. c3 {[%clk 0:03:01]}  Bd6 {[%clk 0:03:02]} 7. Bd3 {[%clk 0:03:02]}  O-O {[%clk 0:03:02]} 8. Qc2 {[%clk 0:03:02]}  Re8+ {[%clk 0:03:03]} 9. Ne2 {[%clk 0:03:02]}  h5 {[%clk 0:03:04]} 10. O-O {[%clk 0:02:53]}  Nd7 {[%clk 0:03:03]} 11. Be3 {[%clk 0:02:45]}  Nf8 {[%clk 0:03:01]} 12. Rfe1 {[%clk 0:02:41]}  h4 {[%clk 0:03:01]} 13. h3 {[%clk 0:02:37]}  Bd7 {[%clk 0:02:58]} 14. Rad1 {[%clk 0:02:34]}  Qc8 {[%clk 0:02:56]} 15. Nf4 {[%clk 0:02:09]}  Qc7 {[%clk 0:02:54]} 16. Qc1 {[%clk 0:02:02]}  Re7 {[%clk 0:02:52]} 17. Re2 {[%clk 0:01:38]}  Rae8 {[%clk 0:02:49]} 18. Rde1 {[%clk 0:01:38]}  Qa5 {[%clk 0:02:41]} 19. a3 {[%clk 0:01:35]}  Qc7 {[%clk 0:02:28]} 20. c4 {[%clk 0:01:32]}  Qc8 {[%clk 0:02:11]} 21. c5 {[%clk 0:01:31]}  Bxf4 {[%clk 0:02:11]} 22. Bxf4 {[%clk 0:01:31]}  Rxe2 {[%clk 0:02:11]} 23. Rxe2 {[%clk 0:01:31]}  Rxe2 {[%clk 0:02:11]} 24. Bxe2 {[%clk 0:01:31]}  Be6 {[%clk 0:02:07]} 25. Bf3 {[%clk 0:01:30]}  Qe8 {[%clk 0:01:57]} 26. Qe3 {[%clk 0:01:24]}  Ng6 {[%clk 0:01:55]} 27. Bd6 {[%clk 0:01:23]}  Qd7 {[%clk 0:01:55]} 28. Qc3 {[%clk 0:01:11]}  Bd5 {[%clk 0:01:40]} 29. Bxd5 {[%clk 0:01:08]}  cxd5 {[%clk 0:01:41]} 30. Qa5 {[%clk 0:00:59]}  a6 {[%clk 0:01:40]} 31. Qb6 {[%clk 0:00:57]}  Qb5 {[%clk 0:01:31]} 32. Qxb5 {[%clk 0:00:37]}  axb5 {[%clk 0:01:32]} 33. b3 {[%clk 0:00:36]}  f5 {[%clk 0:01:19]} 34. Kf1 {[%clk 0:00:35]}  f6 {[%clk 0:01:15]} 35. Ke2 {[%clk 0:00:35]}  Kf7 {[%clk 0:01:16]} 36. Kd3 {[%clk 0:00:35]}  Ke6 {[%clk 0:01:16]} 37. Kc3 {[%clk 0:00:34]}  Kd7 {[%clk 0:01:17]} 38. Kb4 {[%clk 0:00:33]}  Kc6 {[%clk 0:01:17]} 39. f3 {[%clk 0:00:24]}  b6 {[%clk 0:01:01]} 40. a4 {[%clk 0:00:23]}  bxa4 {[%clk 0:01:00]} 41. bxa4 {[%clk 0:00:22]}  bxc5+ {[%clk 0:00:59]} 42. dxc5 {[%clk 0:00:21]}  Ne5 {[%clk 0:00:59]} 43. a5 {[%clk 0:00:17]}  Nd3+ {[%clk 0:00:50]} 44. Kc3 {[%clk 0:00:16]}  Nxc5 {[%clk 0:00:50]} 45. Be7 {[%clk 0:00:15]}  Ne6 {[%clk 0:00:46]} 46. Kb4 {[%clk 0:00:11]}  Nf4 {[%clk 0:00:45]} 47. Bc5 {[%clk 0:00:07]}  Nxg2 {[%clk 0:00:44]} 48. a6 {[%clk 0:00:07]}  Nf4 {[%clk 0:00:44]} 49. Be3 {[%clk 0:00:06]}  Nxh3 {[%clk 0:00:44]} 50. Ka5 {[%clk 0:00:04]}  f4 {[%clk 0:00:44]} 51. Bd4 {[%clk 0:00:03]}  Ng5 {[%clk 0:00:42]} 0-1


[Site "https://www.chess.com"]

[Event "Titled Tuesday Blitz April 12 Early 2022"]
[White "Kucuksari, Kaan"]
[Black "Fernandez Siles, Luis"]
[WhiteFideId "6380166"]
[BlackFideId "2209420"]
[WhiteElo "2305"]
[BlackElo "2212"]
[Result "1-0"]
[Round "04"]
[TimeControl "180+1"]
[Date "2022.04.13"]
[WhiteClock "0:02:57"]
[BlackClock "0:02:07"]

1. d4 {[%clk 0:03:00]}  g6 {[%clk 0:02:58]} 2. e4 {[%clk 0:02:59]}  Bg7 {[%clk 0:02:58]} 3. Nf3 {[%clk 0:03:00]}  d5 {[%clk 0:02:58]} 4. exd5 {[%clk 0:03:00]}  Nf6 {[%clk 0:02:57]} 5. c4 {[%clk 0:03:00]}  O-O {[%clk 0:02:57]} 6. Be2 {[%clk 0:02:59]}  c6 {[%clk 0:02:54]} 7. dxc6 {[%clk 0:02:59]}  bxc6 {[%clk 0:02:52]} 8. O-O {[%clk 0:03:00]}  Bf5 {[%clk 0:02:47]} 9. Nc3 {[%clk 0:03:00]}  Nbd7 {[%clk 0:02:45]} 10. b3 {[%clk 0:03:00]}  Ne4 {[%clk 0:02:43]} 11. Nxe4 {[%clk 0:03:00]}  Bxe4 {[%clk 0:02:44]} 12. Be3 {[%clk 0:03:00]}  c5 {[%clk 0:02:41]} 13. dxc5 {[%clk 0:02:59]}  Bxa1 {[%clk 0:02:39]} 14. Qxa1 {[%clk 0:03:00]}  Qc7 {[%clk 0:02:39]} 15. Bh6 {[%clk 0:02:56]}  f6 {[%clk 0:02:37]} 16. Bxf8 {[%clk 0:02:56]}  Nxf8 {[%clk 0:02:34]} 17. Qd4 {[%clk 0:02:57]}  Bc6 {[%clk 0:02:31]} 18. b4 {[%clk 0:02:57]}  e5 {[%clk 0:02:31]} 19. Qe3 {[%clk 0:02:57]}  Ne6 {[%clk 0:02:30]} 20. b5 {[%clk 0:02:57]}  Bxf3 {[%clk 0:02:27]} 21. Bxf3 {[%clk 0:02:57]}  Rd8 {[%clk 0:02:27]} 22. Bd5 {[%clk 0:02:58]}  Re8 {[%clk 0:02:16]} 23. b6 {[%clk 0:02:58]}  axb6 {[%clk 0:02:14]} 24. cxb6 {[%clk 0:02:59]}  Qd6 {[%clk 0:02:11]} 25. b7 {[%clk 0:03:00]}  Kg7 {[%clk 0:02:10]} 26. a4 {[%clk 0:02:56]}  Nc5 {[%clk 0:02:07]} 27. a5 {[%clk 0:02:57]}  Nxb7 {[%clk 0:02:07]} 28. Bxb7 {[%clk 0:02:57]} 1-0


[Site "https://www.chess.com"]

[Event "Titled Tuesday Blitz April 12 Early 2022"]
[White "Lauridsen, Jesper Morch"]
[Black "Agasarov, Benik"]
[WhiteFideId "1401890"]
[BlackFideId "13314823"]
[WhiteElo "2323"]
[BlackElo "2524"]
[Result "0-1"]
[Round "04"]
[TimeControl "180+1"]
[Date "2022.04.13"]
[WhiteClock "0:00:02"]
[BlackClock "0:00:59"]

1. e4 {[%clk 0:02:56]}  e5 {[%clk 0:02:59]} 2. Nf3 {[%clk 0:02:56]}  Nc6 {[%clk 0:02:59]} 3. Nc3 {[%clk 0:02:55]}  Nf6 {[%clk 0:02:58]} 4. d4 {[%clk 0:02:55]}  exd4 {[%clk 0:02:56]} 5. Nd5 {[%clk 0:02:56]}  Be7 {[%clk 0:02:51]} 6. Bf4 {[%clk 0:02:56]}  d6 {[%clk 0:02:50]} 7. Nxd4 {[%clk 0:02:54]}  O-O {[%clk 0:02:49]} 8. Nxf6+ {[%clk 0:02:15]}  Bxf6 {[%clk 0:02:47]} 9. Be3 {[%clk 0:02:05]}  Re8 {[%clk 0:02:37]} 10. Nxc6 {[%clk 0:02:03]}  bxc6 {[%clk 0:02:35]} 11. c3 {[%clk 0:01:49]}  Rxe4 {[%clk 0:02:33]} 12. Qf3 {[%clk 0:01:46]}  d5 {[%clk 0:02:19]} 13. Bd3 {[%clk 0:01:45]}  Bg4 {[%clk 0:02:16]} 14. Qg3 {[%clk 0:01:42]}  Be5 {[%clk 0:02:15]} 15. f4 {[%clk 0:01:27]}  Bxf4 {[%clk 0:02:14]} 16. Qxg4 {[%clk 0:00:48]}  Rxe3+ {[%clk 0:02:11]} 17. Kf2 {[%clk 0:00:47]}  Qf6 {[%clk 0:02:05]} 18. Qf5 {[%clk 0:00:31]}  Qxf5 {[%clk 0:01:20]} 19. Bxf5 {[%clk 0:00:30]}  g6 {[%clk 0:01:20]} 20. Bd7 {[%clk 0:00:29]}  Rb8 {[%clk 0:01:18]} 21. Rab1 {[%clk 0:00:20]}  c5 {[%clk 0:01:18]} 22. g3 {[%clk 0:00:19]}  Bh6 {[%clk 0:01:17]} 23. Rhe1 {[%clk 0:00:18]}  d4 {[%clk 0:01:15]} 24. cxd4 {[%clk 0:00:17]}  cxd4 {[%clk 0:01:16]} 25. b3 {[%clk 0:00:15]}  Rb6 {[%clk 0:01:15]} 26. Rbd1 {[%clk 0:00:15]}  Rf6+ {[%clk 0:01:14]} 27. Kg2 {[%clk 0:00:14]}  Rd6 {[%clk 0:01:14]} 28. Bg4 {[%clk 0:00:14]}  c5 {[%clk 0:01:13]} 29. Bf3 {[%clk 0:00:10]}  Ra6 {[%clk 0:01:11]} 30. a4 {[%clk 0:00:08]}  Rb6 {[%clk 0:01:10]} 31. Rxe3 {[%clk 0:00:07]}  Bxe3 {[%clk 0:01:10]} 32. Bd5 {[%clk 0:00:08]}  a5 {[%clk 0:01:09]} 33. Bc4 {[%clk 0:00:08]}  Rf6 {[%clk 0:01:08]} 34. Rf1 {[%clk 0:00:07]}  Kg7 {[%clk 0:01:08]} 35. Rxf6 {[%clk 0:00:07]}  Kxf6 {[%clk 0:01:09]} 36. Kf3 {[%clk 0:00:07]}  h5 {[%clk 0:01:05]} 37. h4 {[%clk 0:00:07]}  Ke7 {[%clk 0:00:59]} 38. g4 {[%clk 0:00:06]}  hxg4+ {[%clk 0:00:59]} 39. Kxg4 {[%clk 0:00:07]}  f5+ {[%clk 0:00:59]} 40. Kf3 {[%clk 0:00:05]}  Kf6 {[%clk 0:00:58]} 41. Bd3 {[%clk 0:00:05]}  Bd2 {[%clk 0:00:58]} 42. Bc4 {[%clk 0:00:04]}  Be1 {[%clk 0:00:58]} 43. h5 {[%clk 0:00:03]}  gxh5 {[%clk 0:00:58]} 44. Bd5 {[%clk 0:00:02]}  Ke5 {[%clk 0:00:58]} 45. Bb7 {[%clk 0:00:02]}  h4 {[%clk 0:00:59]} 46. Bc8 {[%clk 0:00:02]}  d3 {[%clk 0:00:58]} 47. Ke3 {[%clk 0:00:02]}  d2 {[%clk 0:00:58]} 48. Ke2 {[%clk 0:00:02]}  h3 {[%clk 0:00:58]} 49. Bb7 {[%clk 0:00:03]}  h2 {[%clk 0:00:59]} 50. Bh1 {[%clk 0:00:03]}  Kf4 {[%clk 0:00:59]} 51. Kd1 {[%clk 0:00:03]}  Ke3 {[%clk 0:00:59]} 52. Kc2 {[%clk 0:00:03]}  Kf2 {[%clk 0:00:59]} 53. b4 {[%clk 0:00:03]}  cxb4 {[%clk 0:00:59]} 54. Kd1 {[%clk 0:00:02]}  Kg1 {[%clk 0:00:59]} 0-1


[Site "https://www.chess.com"]